bitfinex/quotes_BTCUSD_20241028
["timestamp","ask_amount","ask_price","bid_price","bid_amount"]
[1730155812360,0.14333527,69869.0,69868.0,0.41775941]
[1730155813102,0.14333527,69869.0,69868.0,0.41775213]
[1730155813325,0.14333527,69869.0,69868.0,0.41975213]
[1730155814616,0.14333527,69869.0,69868.0,0.44019528]
[1730155815277,0.14333527,69869.0,69868.0,0.44018353]
[1730155815744,0.21376809,69883.0,69879.0,0.257587]
[1730155815958,0.21376809,69883.0,69882.0,0.39404835]
[1730155816190,0.21376809,69883.0,69882.0,0.23789012]
[1730155816446,0.0761,69889.0,69888.0,0.128777]
[1730155817137,0.24243527,69889.0,69888.0,0.128777]
[1730155818458,0.24743527,69889.0,69888.0,0.128777]
[1730155818672,0.25243527,69889.0,69888.0,0.128777]
[1730155819623,0.17633527,69889.0,69888.0,0.128777]
[1730155820377,0.17798727,69889.0,69888.0,0.128777]
[1730155820635,0.17798727,69889.0,69888.0,0.14972274]
[1730155826814,0.17798727,69889.0,69888.0,0.13785254]
[1730155827050,0.17798727,69889.0,69888.0,0.128777]
[1730155827500,0.17298727,69889.0,69888.0,0.128777]
[1730155827693,0.17398727,69889.0,69888.0,0.128777]
[1730155828118,0.17398727,69889.0,69882.0,0.1]
[1730155828119,0.023,69888.0,69882.0,0.1]
[1730155828122,0.023,69886.0,69882.0,0.1]
[1730155828341,0.023,69884.0,69882.0,0.228787]
[1730155828584,0.16633527,69883.0,69882.0,0.228788]
[1730155828831,0.16633527,69883.0,69879.0,0.128792]
[1730155828832,0.023,69882.0,69879.0,0.128792]
[1730155829063,0.14333527,69881.0,69878.0,0.257588]
[1730155829296,0.023,69880.0,69879.0,0.128792]
[1730155829534,0.16633527,69880.0,69879.0,0.128792]
[1730155830908,0.16633527,69880.0,69879.0,0.136792]
[1730155831154,0.1829688,69880.0,69879.0,0.136792]
[1730155831373,0.1829688,69880.0,69879.0,0.128792]
[1730155831592,0.16933527,69880.0,69879.0,0.15288537]
[1730155831820,0.16933527,69880.0,69879.0,0.143805]
[1730155832038,0.16933527,69880.0,69879.0,0.15288629]
[1730155833394,0.16933527,69880.0,69879.0,0.15288918]
[1730155833848,0.16933527,69880.0,69879.0,0.143805]
[1730155834517,0.3279391,69880.0,69879.0,0.015013]
[1730155834741,0.37992727,69880.0,69879.0,0.015013]
[1730155834951,0.37992727,69880.0,69872.0,0.128806]
[1730155834952,0.023,69876.0,69872.0,0.128806]
[1730155835195,0.023,69873.0,69872.0,0.128806]
[1730155835413,0.16633527,69873.0,69872.0,0.228806]
[1730155835861,0.16633527,69873.0,69872.0,0.23789816]
[1730155836316,0.16633527,69873.0,69872.0,0.24389816]
[1730155836544,0.16633527,69873.0,69872.0,0.24789816]
[1730155836761,0.37414027,69873.0,69872.0,0.01]
[1730155837000,0.37914027,69873.0,69872.0,0.006]
[1730155837229,0.50559993,69873.0,69872.0,0.006]
[1730155837477,0.50559993,69873.0,69872.0,0.01]
[1730155837478,0.60389993,69873.0,69872.0,0.01]
[1730155837694,0.60389993,69873.0,69872.0,0.004]
[1730155837908,0.60389993,69873.0,69857.0,0.21376809]
[1730155837909,0.2003,69861.0,69857.0,0.21376809]
[1730155838163,0.16633527,69859.0,69858.0,0.128832]
[1730155838371,0.023,69858.0,69857.0,0.128834]
[1730155838608,0.2393462,69858.0,69857.0,0.128834]
[1730155839295,0.2393462,69858.0,69857.0,0.129834]
[1730155839578,0.2393462,69858.0,69857.0,0.128834]
[1730155839807,0.16633527,69858.0,69857.0,0.128834]
[1730155840693,0.17033527,69858.0,69857.0,0.128834]
[1730155840921,0.17733527,69858.0,69857.0,0.129834]
[1730155841406,0.17033527,69858.0,69857.0,0.128834]
[1730155842042,0.2209815,69858.0,69857.0,0.128834]
[1730155842258,0.2209815,69858.0,69857.0,0.14404735]
[1730155844242,0.17333527,69858.0,69857.0,0.01521335]
[1730155844458,0.30716727,69858.0,69857.0,0.01521335]
[1730155844696,0.30716727,69858.0,69847.0,0.000826]
[1730155844697,0.023,69850.0,69847.0,0.000826]
[1730155844924,0.16633527,69848.0,69847.0,0.000826]
[1730155845143,0.24573527,69848.0,69847.0,0.000826]
[1730155845370,0.37458627,69848.0,69847.0,0.000826]
[1730155846067,0.24573527,69848.0,69847.0,0.000826]
[1730155846308,0.25273527,69848.0,69847.0,0.130679]
[1730155846522,0.17333527,69848.0,69847.0,0.130679]
[1730155846746,0.18133527,69848.0,69847.0,0.131679]
[1730155847193,0.17333527,69848.0,69847.0,0.130679]
[1730155847429,0.1976688,69848.0,69847.0,0.131679]
[1730155847650,0.15033527,69848.0,69847.0,0.130679]
[1730155848089,0.15733527,69848.0,69847.0,0.131679]
[1730155848521,0.15033527,69848.0,69847.0,0.130679]
[1730155848739,0.15633527,69848.0,69847.0,0.131679]
[1730155850032,0.1719688,69848.0,69847.0,0.131679]
[1730155850690,0.15633527,69848.0,69847.0,0.231679]
[1730155851424,0.15633527,69848.0,69847.0,0.25294249]
[1730155855781,0.013,69848.0,69847.0,0.26988733]
[1730155856026,0.013,69848.0,69847.0,0.26202409]
[1730155856274,0.15633527,69848.0,69847.0,0.26102409]
[1730155856489,0.14933527,69848.0,69847.0,0.26102409]
[1730155856707,0.14933527,69848.0,69847.0,0.26402409]
[1730155857176,0.14333527,69848.0,69847.0,0.26302409]
[1730155857416,0.14433527,69848.0,69847.0,0.2902643]
[1730155857649,0.14598727,69848.0,69847.0,0.2782643]
[1730155857892,0.14598727,69848.0,69847.0,0.2792643]
[1730155858334,0.14498727,69848.0,69847.0,0.2782643]
[1730155858556,0.14498727,69848.0,69847.0,0.28227657]
[1730155858774,0.14498727,69848.0,69847.0,0.27527657]
[1730155859662,0.14498727,69848.0,69847.0,0.27727657]
[1730155860133,0.14498727,69848.0,69847.0,0.28027657]
[1730155860384,0.14498727,69848.0,69847.0,0.27727657]
[1730155860848,0.159486,69848.0,69847.0,0.27927657]
[1730155861060,0.14498727,69848.0,69847.0,0.27927657]
[1730155861282,0.16798727,69848.0,69847.0,0.02306621]
[1730155861527,0.25908727,69848.0,69847.0,0.01906621]
[1730155861737,0.25908727,69848.0,69847.0,0.01606621]
[1730155861991,0.16898727,69848.0,69847.0,0.14491921]
[1730155862212,0.16898727,69848.0,69847.0,0.15402046]
[1730155862428,0.16798727,69848.0,69847.0,0.15402046]
[1730155862904,0.17498727,69848.0,69847.0,0.15502046]
[1730155863617,0.18098727,69848.0,69847.0,0.15602046]
[1730155863837,0.17498727,69848.0,69847.0,0.15502046]
[1730155864070,0.16998727,69848.0,69847.0,0.15402961]
[1730155864773,0.17298727,69848.0,69847.0,0.15402961]
[1730155865231,0.14998727,69848.0,69847.0,0.26862302]
[1730155866398,0.14798727,69848.0,69847.0,0.26862302]
[1730155866880,0.14798727,69848.0,69847.0,0.27062302]
[1730155867584,0.14498727,69848.0,69847.0,0.27062302]
[1730155868250,0.001652,69848.0,69847.0,0.27448623]
[1730155870690,0.001652,69848.0,69847.0,0.27162302]
[1730155873874,0.14498727,69848.0,69847.0,0.27162302]
[1730155875695,0.14498727,69848.0,69847.0,0.36862302]
[1730155875696,0.001652,69848.0,69847.0,0.36862302]
[1730155876176,0.001652,69848.0,69847.0,0.34491921]
[1730155876386,0.001652,69848.0,69847.0,0.36964883]
[1730155876821,0.002652,69848.0,69847.0,0.37964883]
[1730155877245,0.002652,69848.0,69847.0,0.38164883]
[1730155877701,0.003652,69848.0,69847.0,0.48914883]
[1730155877922,0.21376809,69861.0,69860.0,0.305429]
[1730155878139,0.21376809,69861.0,69860.0,0.49441897]
[1730155878413,0.21376809,69861.0,69860.0,0.50947435]
[1730155878641,0.21376809,69870.0,69869.0,0.228812]
[1730155878867,0.35710336,69870.0,69869.0,0.41780197]
[1730155879086,0.35710336,69870.0,69869.0,0.43281626]
[1730155879306,0.14333527,69870.0,69869.0,0.26755591]
[1730155880225,0.14333527,69870.0,69869.0,0.43281626]
[1730155880442,0.14833527,69870.0,69869.0,0.43729234]
[1730155880661,0.15333527,69870.0,69869.0,0.43729234]
[1730155880897,0.15333527,69870.0,69869.0,0.29283954]
[1730155881317,0.14833527,69870.0,69869.0,0.28836346]
[1730155881531,0.14333527,69870.0,69869.0,0.28836346]
[1730155881744,0.14333527,69870.0,69869.0,0.29436346]
[1730155882672,0.14333527,69870.0,69869.0,0.27976042]
[1730155883333,0.2764688,69870.0,69869.0,0.16495287]
[1730155883569,0.2764688,69870.0,69869.0,0.02701429]
[1730155884439,0.2764688,69870.0,69869.0,0.14982629]
[1730155884668,0.2764688,69870.0,69869.0,0.02001429]
[1730155884914,0.2804688,69870.0,69869.0,0.02001429]
[1730155885124,0.26613527,69870.0,69869.0,0.14382629]
[1730155885579,0.27113527,69870.0,69869.0,0.14382629]
[1730155886275,0.27113527,69870.0,69869.0,0.01501429]
[1730155886489,0.3377599,69870.0,69869.0,0.001]
[1730155886733,0.3287599,69870.0,69869.0,0.0160193]
[1730155886949,0.023,69869.0,69867.0,0.128815]
[1730155887154,0.14333527,69868.0,69867.0,0.128815]
[1730155887380,0.16633527,69868.0,69867.0,0.128815]
[1730155887619,0.1956536,69868.0,69867.0,0.128815]
[1730155888047,0.16633527,69868.0,69867.0,0.128815]
[1730155889155,0.16633527,69868.0,69859.0,0.16526035]
[1730155889156,0.16633527,69868.0,69858.0,0.51533]
[1730155889380,0.22076809,69869.0,69858.0,0.51533]
[1730155889381,0.16633527,69864.0,69859.0,0.10909584]
[1730155889603,0.338038,69866.0,69856.0,0.257672]
[1730155889604,0.023,69862.0,69856.0,0.257672]
[1730155889901,0.023,69862.0,69861.0,0.128827]
[1730155890129,0.023,69864.0,69861.0,0.128827]
[1730155890798,0.023,69864.0,69862.0,0.128824]
[1730155891024,0.023,69862.0,69861.0,0.131827]
[1730155891247,0.0958,69870.0,69869.0,0.128812]
[1730155891248,0.1188,69870.0,69869.0,0.128812]
[1730155891470,0.023,69870.0,69869.0,0.128812]
[1730155891689,0.076,69872.0,69870.0,0.38643]
[1730155891690,0.023,69871.0,69870.0,0.38643]
[1730155891913,0.023,69871.0,69870.0,0.12881]
[1730155892144,0.16633527,69871.0,69870.0,0.12881]
[1730155893481,0.16633527,69871.0,69868.0,0.257628]
[1730155893722,0.03,69871.0,69870.0,0.12981]
[1730155893951,0.03,69871.0,69870.0,0.13991012]
[1730155893952,0.013,69871.0,69870.0,0.13991012]
[1730155894182,0.013,69871.0,69870.0,0.23991012]
[1730155894430,0.006,69871.0,69870.0,0.25346512]
[1730155895355,0.14933527,69871.0,69870.0,0.23267228]
[1730155895572,0.14933527,69871.0,69870.0,0.25347745]
[1730155895573,0.15433527,69871.0,69870.0,0.25347745]
[1730155896242,0.14333527,69871.0,69870.0,0.25247745]
[1730155896469,0.14333527,69871.0,69870.0,0.27147745]
[1730155896470,0.14533527,69871.0,69870.0,0.27147745]
[1730155896694,0.14533527,69871.0,69870.0,0.24691267]
[1730155896915,0.14433527,69871.0,69870.0,0.23791267]
[1730155897132,0.14433527,69871.0,69870.0,0.24391267]
[1730155897279,0.14433527,69871.0,69870.0,0.26347745]
[1730155897571,0.14433527,69871.0,69870.0,0.24891267]
[1730155897738,0.14333527,69871.0,69870.0,0.25747745]
[1730155898115,0.14333527,69871.0,69870.0,0.24291267]
[1730155898331,0.14333527,69871.0,69870.0,0.25747745]
[1730155898549,0.14333527,69871.0,69870.0,0.23791267]
[1730155898764,0.14333527,69871.0,69870.0,0.24337573]
[1730155898982,0.14333527,69871.0,69870.0,0.25347899]
[1730155899199,0.16633527,69871.0,69870.0,0.14191326]
[1730155899417,0.16633527,69871.0,69870.0,0.14091326]
[1730155899636,0.16633527,69871.0,69870.0,0.13991326]
[1730155900518,0.17133527,69871.0,69870.0,0.13991326]
[1730155900727,0.17133527,69871.0,69870.0,0.13791326]
[1730155902083,0.17633527,69871.0,69870.0,0.13791326]
[1730155902294,0.17133527,69871.0,69870.0,0.13791326]
[1730155902503,0.16633527,69871.0,69870.0,0.1528662]
[1730155902712,0.16733527,69871.0,69870.0,0.1528662]
[1730155904469,0.16733527,69871.0,69870.0,0.16744442]
[1730155904679,0.1923288,69871.0,69870.0,0.16744442]
[1730155904890,0.1923288,69871.0,69870.0,0.1528662]
[1730155905377,0.1923288,69871.0,69870.0,0.16745053]
[1730155905577,0.1939808,69871.0,69870.0,0.16745053]
[1730155906451,0.1939808,69871.0,69870.0,0.14376294]
[1730155906669,0.1939808,69871.0,69870.0,0.16746256]
[1730155906889,0.1939808,69871.0,69870.0,0.15287798]
[1730155906890,0.16898727,69871.0,69870.0,0.15287798]
[1730155908015,0.16898727,69871.0,69870.0,0.14376294]
[1730155908440,0.16898727,69871.0,69870.0,0.15287785]
[1730155908702,0.16898727,69871.0,69870.0,0.16746223]
[1730155908960,0.194146,69871.0,69870.0,0.16746223]
[1730155909428,0.194146,69871.0,69870.0,0.14376294]
[1730155910124,0.194146,69871.0,69870.0,0.15287763]
[1730155910806,0.16898727,69871.0,69870.0,0.15287763]
[1730155914164,0.16898727,69871.0,69870.0,0.16746612]
[1730155914439,0.16898727,69871.0,69870.0,0.15287763]
[1730155914650,0.26028727,69871.0,69870.0,0.01495294]
[1730155914869,0.38909527,69871.0,69870.0,0.01495294]
[1730155915117,0.023,69870.0,69867.0,0.128814]
[1730155915356,0.14333527,69869.0,69868.0,0.00911758]
[1730155915824,0.16633527,69869.0,69868.0,0.00911758]
[1730155916029,0.23626459,69869.0,69868.0,0.00911758]
[1730155916494,0.23626459,69869.0,69867.0,0.128814]
[1730155916495,0.023,69868.0,69867.0,0.128814]
[1730155916784,0.16633527,69868.0,69867.0,0.13793184]
[1730155917245,0.16633527,69868.0,69867.0,0.13993184]
[1730155917496,0.16633527,69868.0,69867.0,0.02611772]
[1730155917757,0.14333527,69868.0,69867.0,0.16752305]
[1730155917961,0.14333527,69868.0,69867.0,0.26952305]
[1730155918419,0.14333527,69868.0,69867.0,0.26752305]
[1730155918842,0.14333527,69868.0,69867.0,0.27252305]
[1730155919981,0.14333527,69868.0,69867.0,0.27052305]
[1730155920212,0.14333527,69868.0,69867.0,0.25793424]
[1730155920431,0.14333527,69868.0,69867.0,0.27252414]
[1730155923864,0.001652,69871.0,69870.0,0.22881]
[1730155924099,0.001652,69871.0,69870.0,0.49734061]
[1730155924327,0.001652,69871.0,69870.0,0.50945884]
[1730155925000,0.001652,69871.0,69870.0,0.51445884]
[1730155926147,0.002652,69871.0,69870.0,0.51445884]
[1730155926831,0.001652,69871.0,69870.0,0.51445884]
[1730155927290,0.002652,69871.0,69870.0,0.52145884]
[1730155927717,0.001652,69871.0,69870.0,0.51445884]
[1730155927950,0.002652,69871.0,69870.0,0.52245884]
[1730155928159,0.002652,69871.0,69870.0,0.44575884]
[1730155928390,0.003652,69871.0,69870.0,0.47647469]
[1730155928598,0.003652,69871.0,69870.0,0.47147469]
[1730155929255,0.002652,69871.0,69870.0,0.46347469]
[1730155929521,0.003652,69871.0,69870.0,0.47047469]
[1730155929720,0.002652,69871.0,69870.0,0.46047469]
[1730155929949,0.002652,69871.0,69870.0,0.46847469]
[1730155930182,0.003652,69871.0,69870.0,0.46847469]
[1730155932578,0.003652,69871.0,69870.0,0.30321434]
[1730155934000,0.003652,69871.0,69870.0,0.30320599]
[1730155934484,0.003652,69871.0,69870.0,0.64192845]
[1730155934730,0.003652,69871.0,69870.0,0.90556589]
[1730155934966,0.003652,69871.0,69870.0,0.92900231]
[1730155935217,0.003652,69871.0,69870.0,0.84325666]
[1730155935451,0.003652,69871.0,69870.0,0.89456909]
[1730155935706,0.002652,69871.0,69870.0,0.88756909]
[1730155935998,0.002652,69871.0,69870.0,0.89356909]
[1730155936668,0.003652,69871.0,69870.0,0.90756909]
[1730155936885,0.003652,69871.0,69870.0,0.90729505]
[1730155937589,0.003652,69871.0,69870.0,0.88359514]
[1730155937800,0.003652,69871.0,69870.0,0.90727229]
[1730155938490,0.003652,69871.0,69870.0,0.82156874]
[1730155939582,0.003652,69871.0,69870.0,0.88581943]
[1730155940026,0.003652,69871.0,69870.0,0.63769427]
[1730155940482,0.003652,69871.0,69870.0,0.57344358]
[1730155940759,0.14698727,69871.0,69870.0,0.21618323]
[1730155940997,0.161686,69871.0,69870.0,0.21618323]
[1730155941220,0.14698727,69871.0,69870.0,0.21618323]
[1730155941928,0.14598727,69871.0,69870.0,0.18761248]
[1730155942160,0.14498727,69871.0,69870.0,0.17361248]
[1730155942373,0.14498727,69871.0,69870.0,0.20161248]
[1730155942592,0.14498727,69871.0,69870.0,0.18761248]
[1730155942808,0.14498727,69871.0,69870.0,0.17361248]
[1730155943034,0.14498727,69871.0,69870.0,0.27361248]
[1730155943254,0.202896,69871.0,69870.0,0.28818323]
[1730155943959,0.16798727,69871.0,69870.0,0.28818323]
[1730155944180,0.16798727,69871.0,69870.0,0.27361248]
[1730155944418,0.16998727,69871.0,69870.0,0.27361248]
[1730155944663,0.16998727,69871.0,69870.0,0.15289663]
[1730155945147,0.16998727,69871.0,69870.0,0.02408663]
[1730155945148,0.16798727,69871.0,69870.0,0.02408663]
[1730155945373,0.16798727,69871.0,69870.0,0.01498023]
[1730155945374,0.38814161,69871.0,69870.0,0.01498023]
[1730155945600,0.49104161,69871.0,69870.0,0.001]
[1730155946079,0.023,69864.0,69859.0,0.00910596]
[1730155946304,0.023,69862.0,69861.0,0.128826]
[1730155946528,0.16633527,69862.0,69861.0,0.13793073]
[1730155946735,0.16633527,69862.0,69861.0,0.1519696]
[1730155947181,0.1958506,69862.0,69861.0,0.1519696]
[1730155947869,0.16633527,69862.0,69861.0,0.1519696]
[1730155948106,0.005652,69871.0,69870.0,0.12881]
[1730155948353,0.14498727,69871.0,69870.0,0.24285397]
[1730155948581,0.14498727,69871.0,69870.0,0.25195614]
[1730155949256,0.14498727,69871.0,69870.0,0.26652014]
[1730155949476,0.14798727,69871.0,69870.0,0.25195614]
[1730155949715,0.16345548,69871.0,69870.0,0.25195614]
[1730155949942,0.14498727,69871.0,69870.0,0.25195614]
[1730155951112,0.14498727,69871.0,69870.0,0.15195614]
[1730155951113,0.25388727,69871.0,69870.0,0.15195614]
[1730155951371,0.25088727,69871.0,69870.0,0.15895614]
[1730155951591,0.31023281,69871.0,69870.0,0.15585397]
[1730155951809,0.31023281,69871.0,69870.0,0.02004397]
[1730155952025,0.31023281,69871.0,69870.0,0.01504397]
[1730155952268,0.41013281,69871.0,69870.0,0.01504397]
[1730155952503,0.40713281,69871.0,69870.0,0.14285397]
[1730155952728,0.14498727,69871.0,69870.0,0.29407035]
[1730155952943,0.15198727,69871.0,69870.0,0.31723676]
[1730155953618,0.15198727,69871.0,69870.0,0.41723676]
[1730155953852,0.15198727,69871.0,69870.0,0.43180125]
[1730155954072,0.14898727,69871.0,69870.0,0.43180125]
[1730155954294,0.14798727,69871.0,69870.0,0.41723676]
[1730155954506,0.15198727,69871.0,69870.0,0.41723676]
[1730155954954,0.14798727,69871.0,69870.0,0.42623676]
[1730155955221,0.14498727,69871.0,69870.0,0.41723676]
[1730155955440,0.16798727,69871.0,69870.0,0.16097641]
[1730155955652,0.16798727,69871.0,69870.0,0.16797641]
[1730155955878,0.16798727,69871.0,69870.0,0.15197641]
[1730155956100,0.16798727,69871.0,69870.0,0.15797641]
[1730155956332,0.16798727,69871.0,69870.0,0.15797646]
[1730155957023,0.16798727,69871.0,69870.0,0.14887414]
[1730155957241,0.16798727,69871.0,69870.0,0.14987414]
[1730155957467,0.16798727,69871.0,69870.0,0.15197566]
[1730155957696,0.16798727,69871.0,69870.0,0.15297566]
[1730155957911,0.16798727,69871.0,69870.0,0.15397566]
[1730155958126,0.16798727,69871.0,69870.0,0.15197559]
[1730155958337,0.16798727,69871.0,69870.0,0.15297559]
[1730155958551,0.16798727,69871.0,69870.0,0.14387414]
[1730155958768,0.16798727,69871.0,69870.0,0.14287414]
[1730155959031,0.184786,69871.0,69870.0,0.14387414]
[1730155959467,0.16798727,69871.0,69870.0,0.14387414]
[1730155960180,0.16798727,69871.0,69870.0,0.15297487]
[1730155960406,0.14498727,69871.0,69870.0,0.25297487]
[1730155960631,0.14498727,69871.0,69870.0,0.26653846]
[1730155960843,0.14698727,69871.0,69870.0,0.27101456]
[1730155961064,0.14698727,69871.0,69870.0,0.25845097]
[1730155961284,0.14498727,69871.0,69870.0,0.27301456]
[1730155961550,0.14498727,69871.0,69870.0,0.27101456]
[1730155961764,0.14498727,69871.0,69870.0,0.27201456]
[1730155961982,0.14498727,69871.0,69870.0,0.27101456]
[1730155962422,0.14498727,69871.0,69870.0,0.27401456]
[1730155962640,0.14498727,69871.0,69870.0,0.27201456]
[1730155963106,0.001652,69871.0,69870.0,0.27201456]
[1730155963329,0.001652,69871.0,69870.0,0.27487657]
[1730155963543,0.001652,69871.0,69870.0,0.27387657]
[1730155964006,0.001652,69871.0,69870.0,0.28487657]
[1730155964227,0.001652,69871.0,69870.0,0.27887657]
[1730155964447,0.001652,69871.0,69870.0,0.27387657]
[1730155964668,0.001652,69871.0,69870.0,0.27687657]
[1730155964904,0.001652,69871.0,69870.0,0.27487657]
[1730155965124,0.001652,69871.0,69870.0,0.27101456]
[1730155965348,0.001652,69871.0,69870.0,0.27701456]
[1730155965624,0.001652,69871.0,69870.0,0.28201456]
[1730155967198,0.001652,69871.0,69870.0,0.27753846]
[1730155967418,0.001652,69871.0,69870.0,0.28201458]
[1730155967628,0.001652,69871.0,69870.0,0.26745647]
[1730155967858,0.001652,69871.0,69870.0,0.28202693]
[1730155970351,0.001652,69871.0,69870.0,0.28488893]
[1730155971718,0.001652,69871.0,69870.0,0.28202693]
[1730155976969,0.001652,69871.0,69870.0,0.28202687]
[1730155977188,0.14498727,69871.0,69870.0,0.28202687]
[1730155977380,0.237986,69871.0,69870.0,0.18202687]
[1730155978276,0.260986,69871.0,69870.0,0.18202687]
[1730155979147,0.260986,69871.0,69870.0,0.17702687]
[1730155979375,0.260986,69871.0,69870.0,0.18202687]
[1730155979580,0.260986,69871.0,69870.0,0.17602687]
[1730155979785,0.262986,69871.0,69870.0,0.17602687]
[1730155980016,0.262986,69871.0,69870.0,0.17102687]
[1730155980224,0.263986,69871.0,69870.0,0.17102687]
[1730155980429,0.25248727,69871.0,69870.0,0.17102687]
[1730155981342,0.25248727,69871.0,69870.0,0.0185402]
[1730155981563,0.25248727,69871.0,69870.0,0.04225466]
[1730155981800,0.38129527,69871.0,69870.0,0.02766095]
[1730155982054,0.5370851,69871.0,69870.0,0.01406414]
[1730155982293,0.0785,69860.0,69850.0,0.01520313]
[1730155982501,0.0785,69860.0,69844.0,0.0794]
[1730155982502,0.023,69858.0,69857.0,0.21376809]
[1730155982722,0.171972,69858.0,69857.0,0.00911913]
[1730155982931,0.171972,69858.0,69857.0,0.01461158]
[1730155983140,0.04314,69858.0,69857.0,0.00911885]
[1730155983384,0.04314,69858.0,69852.0,0.257687]
[1730155983385,0.171972,69858.0,69854.0,0.128839]
[1730155983593,0.04314,69858.0,69855.0,0.00911287]
[1730155983802,0.04314,69858.0,69855.0,0.01466158]
[1730155984026,0.175973,69858.0,69857.0,0.001]
[1730155984237,0.05014,69858.0,69857.0,0.001]
[1730155984468,0.05014,69858.0,69857.0,0.01565244]
[1730155984734,0.05014,69858.0,69857.0,0.001]
[1730155985149,0.05014,69858.0,69857.0,0.01565244]
[1730155985367,0.174972,69858.0,69854.0,0.128839]
[1730155985590,0.178972,69858.0,69855.0,0.001]
[1730155985824,0.184972,69858.0,69855.0,0.002]
[1730155986047,0.184972,69858.0,69855.0,0.01466158]
[1730155986048,0.171972,69858.0,69855.0,0.01466158]
[1730155986265,0.0785,69860.0,69857.0,0.128834]
[1730155986495,0.012,69858.0,69857.0,0.130834]
[1730155986708,0.004,69858.0,69857.0,0.13893542]
[1730155987157,0.15758527,69858.0,69857.0,0.13793542]
[1730155987436,0.15158527,69858.0,69857.0,0.13793542]
[1730155987647,0.14433527,69858.0,69857.0,0.13793542]
[1730155988474,0.14833527,69858.0,69857.0,0.13793542]
[1730155988909,0.14433527,69858.0,69857.0,0.13793542]
[1730155989761,0.14333527,69858.0,69857.0,0.13793542]
[1730155989968,0.1665188,69858.0,69857.0,0.13793542]
[1730155990829,0.14433527,69858.0,69857.0,0.13793542]
[1730155991489,0.14333527,69858.0,69857.0,0.13793542]
[1730155991704,0.14433527,69858.0,69857.0,0.13793542]
[1730155992143,0.14333527,69858.0,69857.0,0.13793542]
[1730155992617,0.14333527,69858.0,69857.0,0.1526874]
[1730155992808,0.1576688,69858.0,69857.0,0.1526874]
[1730155993035,0.1576688,69858.0,69857.0,0.1636874]
[1730155993453,0.1576688,69858.0,69857.0,0.17825565]
[1730155993658,0.1576688,69858.0,69857.0,0.1636874]
[1730155993952,0.1576688,69858.0,69857.0,0.343516]
[1730155994442,0.1576688,69858.0,69857.0,0.1636874]
[1730155995796,0.1576688,69858.0,69856.0,0.257672]
[1730155995797,0.1576688,69858.0,69855.0,0.1205517]
[1730155996042,0.21376809,69864.0,69863.0,0.128823]
[1730155996283,0.023,69863.0,69856.0,0.01229789]
[1730155996553,0.023,69863.0,69858.0,0.257665]
[1730155996785,0.23676809,69863.0,69855.0,0.1]
[1730155996995,0.432545,69864.0,69853.0,0.257682]
[1730155996996,0.023,69861.0,69853.0,0.128841]
[1730155997199,0.2903221,69862.0,69855.0,0.009]
[1730155997200,0.151831,69859.0,69855.0,0.009]
[1730155997430,0.2903221,69862.0,69854.0,0.57144709]
[1730155997431,0.14333527,69858.0,69854.0,0.57144709]
[1730155997671,0.14333527,69858.0,69857.0,0.128834]
[1730155998096,0.14433527,69858.0,69857.0,0.128834]
[1730155998548,0.16203601,69858.0,69857.0,0.128834]
[1730155999419,0.14433527,69858.0,69857.0,0.128834]
[1730155999618,0.16733527,69858.0,69857.0,0.128834]
[1730155999840,0.16733527,69858.0,69857.0,0.130834]
[1730156000065,0.16633527,69858.0,69857.0,0.130834]
[1730156000782,0.16633527,69858.0,69857.0,0.128834]
[1730156001002,0.16323601,69858.0,69857.0,0.130834]
[1730156001687,0.14333527,69858.0,69857.0,0.130834]
[1730156001902,0.14333527,69858.0,69857.0,0.131834]
[1730156002387,0.14333527,69858.0,69857.0,0.228834]
[1730156002839,0.21376809,69865.0,69857.0,0.101]
[1730156003031,0.21376809,69865.0,69864.0,0.228821]
[1730156003242,0.001652,69871.0,69870.0,0.22881]
[1730156003428,0.001652,69871.0,69870.0,0.39407035]
[1730156003641,0.001652,69871.0,69870.0,0.40628854]
[1730156004050,0.14498727,69871.0,69870.0,0.40628854]
[1730156004273,0.14298727,69871.0,69870.0,0.40628854]
[1730156004912,0.14298727,69871.0,69870.0,0.42085622]
[1730156005551,0.0999,69884.0,69879.0,0.128794]
[1730156005763,0.14498727,69880.0,69879.0,0.128794]
[1730156005978,0.14498727,69880.0,69879.0,0.14093661]
[1730156006893,0.399268,69880.0,69879.0,0.01214261]
[1730156007098,0.270476,69880.0,69879.0,0.01214261]
[1730156007312,0.023,69879.0,69875.0,0.257601]
[1730156007531,0.023,69877.0,69874.0,0.257606]
[1730156007730,0.023,69877.0,69876.0,0.01205765]
[1730156007967,0.023,69876.0,69875.0,0.01206221]
[1730156008180,0.023,69876.0,69875.0,0.128801]
[1730156008380,0.023,69876.0,69875.0,0.13790417]
[1730156008904,0.14333527,69876.0,69875.0,0.14290417]
[1730156009054,0.14333527,69876.0,69875.0,0.13990417]
[1730156009280,0.14297031,69876.0,69875.0,0.13790417]
[1730156009488,0.14297031,69876.0,69875.0,0.14290417]
[1730156009698,0.14297031,69876.0,69875.0,0.13990417]
[1730156009904,0.14297031,69876.0,69875.0,0.13790417]
[1730156010126,0.14297031,69876.0,69875.0,0.14090417]
[1730156010283,0.14297031,69876.0,69875.0,0.13790417]
[1730156011524,0.17031164,69876.0,69875.0,0.13890417]
[1730156011974,0.17031164,69876.0,69875.0,0.13790417]
[1730156012212,0.17331164,69876.0,69875.0,0.13790417]
[1730156013000,0.17731164,69876.0,69875.0,0.13790417]
[1730156014862,0.14997031,69876.0,69875.0,0.13790417]
[1730156015568,0.14697031,69876.0,69875.0,0.128801]
[1730156015792,0.14697031,69876.0,69875.0,0.13788144]
[1730156016017,0.14297031,69876.0,69875.0,0.13788144]
[1730156016464,0.14397031,69876.0,69875.0,0.13788144]
[1730156016722,0.19441154,69876.0,69875.0,0.13788144]
[1730156017412,0.19441154,69876.0,69875.0,0.00908044]
[1730156017673,0.25761,69874.0,69867.0,0.128815]
[1730156017893,0.151809,69871.0,69868.0,0.0090819]
[1730156018120,0.14333527,69870.0,69869.0,0.0090819]
[1730156018350,0.16633527,69870.0,69869.0,0.0090819]
[1730156018805,0.29514527,69870.0,69869.0,0.0090819]
[1730156019044,0.38243281,69870.0,69869.0,0.0090819]
[1730156019454,0.38243281,69870.0,69869.0,0.0140819]
[1730156019752,0.38243281,69870.0,69869.0,0.005]
[1730156019959,0.46313281,69870.0,69869.0,0.005]
[1730156020376,0.46313281,69870.0,69869.0,0.01751219]
[1730156020580,0.46313281,69870.0,69869.0,0.005]
[1730156020786,0.46313281,69870.0,69869.0,0.01451219]
[1730156021209,0.46313281,69870.0,69869.0,0.01551219]